bitfinex/quotes_SOLUSD_20241125
["timestamp","ask_amount","ask_price","bid_price","bid_amount"]
[1732554708155,17.92249092,240.6,240.48,4.1582]
[1732554708156,17.92249092,240.6,240.52,17.92249092]
[1732554708459,17.92249092,240.62,240.52,17.92249092]
[1732554708765,17.92249092,240.6,240.5,17.92249092]
[1732554708930,2.494,240.57,240.5,17.92249092]
[1732554709263,2.494,240.57,240.46,17.92249092]
[1732554709264,17.92249092,240.56,240.46,17.92249092]
[1732554709566,17.92249092,240.54,240.44,17.92249092]
[1732554710469,2.4944,240.53,240.46,17.92249092]
[1732554710763,2.494,240.58,240.52,17.92249092]
[1732554711054,2.494,240.58,240.5,17.92249092]
[1732554711252,20.41649092,240.58,240.5,17.92249092]
[1732554711453,17.92249092,240.56,240.46,17.92249092]
[1732554711636,2.4942,240.55,240.48,17.92249092]
[1732554712238,17.92249092,240.54,240.44,17.92249092]
[1732554712457,17.92249092,240.52,240.44,17.92249092]
[1732554712646,17.92249092,240.54,240.44,17.92249092]
[1732554713551,17.92249092,240.54,240.46,17.92249092]
[1732554713759,2.4944,240.53,240.48,17.92249092]
[1732554714062,2.4944,240.53,240.46,17.92249092]
[1732554714365,2.4944,240.53,240.48,17.92249092]
[1732554715367,2.4942,240.55,240.48,17.92249092]
[1732554715572,17.92249092,240.54,240.45,17.92249092]
[1732554715735,17.92249092,240.52,240.4,20.5928]
[1732554715938,17.92249092,240.52,240.43,17.92249092]
[1732554716755,17.92249092,240.54,240.45,17.92249092]
[1732554716956,2.4944,240.53,240.45,17.92249092]
[1732554718768,17.92249092,240.52,240.43,17.92249092]
[1732554718961,17.92249092,240.5,240.41,17.92249092]
[1732554719162,17.92249092,240.42,240.32,16.1771]
[1732554719343,17.92249092,240.4,240.32,17.92249092]
[1732554719548,17.92249092,240.4,240.3,17.92249092]
[1732554720168,17.92249092,240.4,240.32,17.92249092]
[1732554720564,17.92249092,240.42,240.34,17.92249092]
[1732554721082,17.92249092,240.48,240.31,0.4775364]
[1732554721083,2.4961,240.37,240.31,0.4775364]
[1732554722452,20.41849092,240.38,240.31,0.4775364]
[1732554723160,17.92249092,240.34,240.31,0.4775364]
[1732554723476,17.92249092,240.36,240.31,0.4775364]
[1732554723851,20.41839092,240.4,240.32,17.92249092]
[1732554724162,17.92249092,240.43,240.35,17.92249092]
[1732554724359,17.92249092,240.41,240.35,17.92249092]
[1732554724572,17.92249092,240.41,240.33,17.92249092]
[1732554724987,17.92249092,240.37,240.31,0.4775364]
[1732554725366,17.92249092,240.37,240.31,18.40002732]
[1732554725680,17.92249092,240.37,240.31,0.4775364]
[1732554726376,17.92249092,240.33,240.31,0.4775364]
[1732554726955,17.92249092,240.35,240.31,0.4775364]
[1732554727770,17.92249092,240.37,240.31,0.4775364]
[1732554728158,8.7354,240.4,240.31,0.4775364]
[1732554728159,17.92249092,240.35,240.31,0.4775364]
[1732554728780,8.7354,240.4,240.31,0.4775364]
[1732554728781,17.92249092,240.37,240.31,0.4775364]
[1732554729188,17.92249092,240.35,240.31,0.4775364]
[1732554729587,17.92249092,240.33,240.31,0.4775364]
[1732554730560,8.5994,240.36,240.31,0.4775364]
[1732554730755,17.92249092,240.35,240.31,0.4775364]
[1732554730960,2.4962,240.36,240.31,0.4775364]
[1732554731416,17.92249092,240.37,240.31,0.4775364]
[1732554731589,17.92249092,240.39,240.31,0.4775364]
[1732554731889,17.92249092,240.39,240.31,18.40002732]
[1732554732492,2.4954,240.44,240.31,0.4775364]
[1732554732493,17.92249092,240.35,240.31,0.4775364]
[1732554732664,8.7339,240.44,240.31,0.4775364]
[1732554732665,17.92249092,240.33,240.31,0.4775364]
[1732554733080,20.41909092,240.33,240.31,0.4775364]
[1732554733988,10.0,240.43,240.31,0.4775364]
[1732554733989,17.92249092,240.35,240.31,0.4775364]
[1732554734167,17.92249092,240.37,240.31,0.4775364]
[1732554735168,20.41869092,240.37,240.31,0.4775364]
[1732554735874,17.92249092,240.35,240.31,0.4775364]
[1732554736599,2.4962,240.37,240.31,0.4775364]
[1732554736600,20.41869092,240.37,240.31,0.4775364]
[1732554736889,17.92249092,240.39,240.31,22.56112732]
[1732554737462,17.92249092,240.37,240.31,0.4775364]
[1732554737882,6.2388,240.43,240.31,0.4775364]
[1732554737883,17.92249092,240.35,240.31,0.4775364]
[1732554738066,17.92249092,240.37,240.31,0.4775364]
[1732554738984,17.92249092,240.35,240.31,0.4775364]
[1732554739191,6.2388,240.43,240.31,0.4775364]
[1732554739192,17.92249092,240.37,240.31,0.4775364]
[1732554739770,17.92249092,240.33,240.31,0.4775364]
[1732554741069,2.4966,240.32,240.31,0.4775364]
[1732554742888,20.41899092,240.33,240.31,0.4775364]
[1732554743085,17.92249092,240.33,240.31,0.4775364]
[1732554743596,6.1247,240.4,240.31,0.4775364]
[1732554743597,17.92249092,240.35,240.31,0.4775364]
[1732554743985,17.92249092,240.35,240.31,4.6387364]
[1732554744171,17.92249092,240.37,240.31,4.6387364]
[1732554744602,17.92249092,240.33,240.32,15.9798]
[1732554744800,2.4951,240.47,240.32,15.9798]
[1732554744974,17.92249092,240.38,240.32,15.9798]
[1732554745174,8.7328,240.47,240.34,4.1607]
[1732554745175,17.92249092,240.41,240.34,4.1607]
[1732554745692,17.92249092,240.41,240.35,23.776884]
[1732554746195,17.92249092,240.43,240.35,41.69937492]
[1732554746441,17.92249092,240.41,240.34,4.1607]
[1732554747402,17.92249092,240.41,240.33,22.08339092]
[1732554747997,17.92249092,240.41,240.32,15.9798]
[1732554747998,17.92249092,240.39,240.32,15.9798]
[1732554748189,17.92249092,240.35,240.32,15.9798]
[1732554748507,17.92249092,240.37,240.32,15.9798]
[1732554748696,17.92249092,240.41,240.33,17.92249092]
[1732554748905,17.92249092,240.43,240.35,17.92249092]
[1732554749308,20.41799092,240.43,240.35,17.92249092]
[1732554749605,17.92249092,240.4,240.32,38.06329092]
[1732554749915,17.92249092,240.42,240.34,17.92249092]
[1732554750491,17.92249092,240.43,240.33,23.776884]
[1732554750697,17.92249092,240.44,240.37,17.92249092]
[1732554750877,17.92249092,240.44,240.36,17.92249092]
[1732554751080,17.92249092,240.44,240.37,17.92249092]
[1732554751387,17.92249092,240.47,240.4,17.92249092]
[1732554751999,17.92249092,240.45,240.38,17.92249092]
[1732554752205,17.92249092,240.45,240.39,23.776884]
[1732554752797,17.92249092,240.46,240.39,41.69937492]
[1732554752985,17.92249092,240.49,240.42,17.92249092]
[1732554753188,17.92249092,240.52,240.44,34.39269092]
[1732554753390,17.92249092,240.53,240.45,45.85817492]
[1732554753602,17.92249092,240.51,240.45,27.935684]
[1732554753928,17.92249092,240.52,240.45,57.935684]
[1732554754116,2.4943,240.55,240.45,57.935684]
[1732554754308,17.92249092,240.53,240.46,17.92249092]
[1732554754681,17.92249092,240.57,240.5,17.92249092]
[1732554755104,17.92249092,240.52,240.46,23.776884]
[1732554755298,17.92249092,240.51,240.48,30.0]
[1732554755704,17.92249092,240.51,240.45,4.1588]
[1732554755900,8.85389,240.59,240.44,16.4702]
[1732554756109,17.92249092,240.45,240.44,16.4702]
[1732554756611,17.92249092,240.45,240.38,15.8239]
[1732554757417,17.92249092,240.47,240.39,17.92249092]
[1732554758130,17.92249092,240.49,240.41,17.92249092]
[1732554758409,17.92249092,240.49,240.38,19.9839]
[1732554758410,17.92249092,240.55,240.47,17.92249092]
[1732554758708,17.92249092,240.59,240.51,17.92249092]
[1732554758919,17.92249092,240.63,240.55,17.92249092]
[1732554759588,17.92249092,240.63,240.55,22.07949092]
[1732554760027,17.92249092,240.57,240.52,23.776884]
[1732554760321,17.92249092,240.53,240.46,20.6187]
[1732554760692,8.7267,240.64,240.46,16.4601]
[1732554760905,5.4329883,240.63,240.46,16.4601]
[1732554761503,8.7273,240.62,240.46,16.4601]
[1732554762019,17.92249092,240.5,240.46,16.4601]
[1732554763713,17.92249092,240.52,240.46,16.4601]
[1732554765922,17.92249092,240.52,240.38,10.0]
[1732554765923,10.0,240.29,240.22,25.98952008]
[1732554766124,10.0,240.19,240.07,18.40002732]
[1732554766309,17.92249092,240.13,240.07,0.4775364]
[1732554766615,10.0,240.19,240.07,0.4775364]
[1732554766816,38.50334492,240.36,240.07,0.4775364]
[1732554766817,12.161,240.38,240.1,10.0]
[1732554767118,10.0,240.34,240.07,14.6428364]
[1732554767322,0.12549,240.35,240.09,10.0]
[1732554767538,8.7375,240.34,240.11,10.0]
[1732554767696,8.7375,240.34,240.12,6.3303]
[1732554767892,17.92249092,240.25,240.15,17.92249092]
[1732554768124,17.92249092,240.25,240.16,15.7534]
[1732554768599,17.92249092,240.25,240.18,23.776884]
[1732554769004,17.92249092,240.2,240.17,23.776884]
[1732554769720,17.92249092,240.22,240.17,23.776884]
[1732554770629,29.21124465,240.21,240.17,23.776884]
[1732554771129,29.21124465,240.23,240.17,23.776884]
[1732554771333,29.21124465,240.27,240.19,23.776884]
[1732554771507,29.21124465,240.25,240.19,23.776884]
[1732554771709,29.21124465,240.25,240.18,29.21124465]
[1732554772010,29.21124465,240.25,240.19,23.776884]
[1732554772904,29.21124465,240.27,240.2,29.21124465]
[1732554773105,29.21124465,240.29,240.21,23.776884]
[1732554773308,29.21124465,240.27,240.21,23.776884]
[1732554774122,29.21124465,240.27,240.19,23.776884]
[1732554774805,29.21124465,240.27,240.21,23.776884]
[1732554775209,29.21124465,240.27,240.19,23.776884]
[1732554775544,29.21124465,240.27,240.21,23.776884]
[1732554775831,29.21124465,240.29,240.21,23.776884]
[1732554776207,29.21124465,240.27,240.21,23.776884]
[1732554777209,29.21124465,240.27,240.19,23.776884]
[1732554777624,31.70824465,240.29,240.19,52.98812865]
[1732554777811,29.21124465,240.25,240.19,23.776884]
[1732554778131,29.21124465,240.25,240.18,23.776884]
[1732554778439,29.21124465,240.21,240.17,23.776884]
[1732554778607,29.21124465,240.19,240.16,15.7534]
[1732554779607,29.21124465,240.21,240.16,15.7534]
[1732554779807,29.21124465,240.23,240.17,23.776884]
[1732554780007,29.21124465,240.18,240.16,15.7534]
[1732554780209,29.21124465,240.2,240.16,15.7534]
[1732554780826,29.21124465,240.18,240.16,15.7534]
[1732554781336,29.21124465,240.2,240.16,15.7534]
[1732554782011,29.21124465,240.22,240.16,15.7534]
[1732554782340,29.21124465,240.2,240.12,6.3303]
[1732554782521,29.21124465,240.18,240.09,44.26244465]
[1732554782720,10.0,240.26,240.09,44.26244465]
[1732554782721,29.21124465,240.2,240.11,29.21124465]
[1732554783229,29.21124465,240.2,240.13,29.21124465]
[1732554783423,8.74,240.27,240.13,29.21124465]
[1732554783424,2.4978,240.21,240.13,29.21124465]
[1732554783814,2.4978,240.21,240.15,29.21124465]
[1732554784012,2.4978,240.21,240.13,29.21124465]
[1732554784243,29.21124465,240.2,240.13,29.21124465]
[1732554784630,29.21124465,240.2,240.11,29.21124465]
[1732554785133,29.21124465,240.18,240.09,44.26244465]
[1732554785317,29.21124465,240.16,240.09,44.26244465]
[1732554785513,2.4984,240.15,240.09,15.0512]
[1732554786042,29.21124465,240.14,240.09,15.0512]
[1732554786439,2.4986,240.13,240.09,15.0512]
[1732554787339,29.21124465,240.1,240.07,0.4775364]
[1732554787531,2.4986,240.13,240.07,29.68878105]
[1732554787720,29.21124465,240.16,240.09,23.776884]
[1732554787921,29.21124465,240.15,240.09,23.776884]
[1732554788117,29.21124465,240.15,240.08,29.21124465]
[1732554788118,2.4982,240.17,240.07,24.2544204]
[1732554788317,10.0,240.32,240.09,6.3224]
[1732554788318,6.1008,240.32,240.09,6.3224]
[1732554788530,6.1008,240.32,240.12,16.5695]
[1732554788531,2.4967,240.31,240.12,16.5695]
[1732554788725,8.7386,240.31,240.14,0.12549]
[1732554789133,8.7386,240.31,240.13,23.776884]
[1732554789337,29.21124465,240.19,240.13,23.776884]
[1732554789521,29.21124465,240.17,240.12,16.5695]
[1732554789712,29.21124465,240.18,240.12,16.5695]
[1732554790038,29.21124465,240.21,240.13,52.98812865]
[1732554790228,29.21124465,240.19,240.13,23.776884]
[1732554790426,29.21124465,240.21,240.13,52.98812865]
[1732554790615,29.21124465,240.23,240.16,23.776884]
[1732554790816,29.21124465,240.25,240.18,23.776884]
[1732554791837,29.21124465,240.25,240.18,27.940184]
[1732554792219,2.4975,240.24,240.17,29.21124465]
[1732554792531,29.21124465,240.36,240.12,16.5695]
[1732554792532,17.97199014,240.26,240.19,17.97199014]
[1732554793039,20.46909014,240.28,240.19,17.97199014]
[1732554793234,20.46889014,240.3,240.21,17.97199014]
[1732554793437,20.46889014,240.3,240.15,20.0]
[1732554793438,17.97199014,240.32,240.24,23.776884]
[1732554793746,17.97199014,240.28,240.19,17.97199014]
[1732554794047,17.97199014,240.24,240.16,17.97199014]
[1732554794238,17.97199014,240.23,240.17,23.776884]
[1732554794931,17.97199014,240.25,240.18,17.97199014]
[1732554795249,17.97199014,240.3,240.22,17.97199014]
[1732554795824,20.46889014,240.3,240.23,23.776884]
[1732554796030,17.97199014,240.26,240.19,4.1632]
[1732554796236,17.97199014,240.26,240.2,23.776884]
[1732554796754,17.97199014,240.28,240.2,41.74887414]
[1732554797117,17.97199014,240.3,240.22,17.97199014]
[1732554797323,10.0,240.46,240.24,17.97199014]
[1732554797324,17.97199014,240.32,240.24,17.97199014]
[1732554797523,17.97199014,240.3,240.23,6.4055]
[1732554797718,17.97199014,240.36,240.23,6.4055]
[1732554797719,17.97199014,240.26,240.23,6.4055]
[1732554797938,17.97199014,240.28,240.23,6.4055]
[1732554798258,17.97199014,240.3,240.23,6.4055]
[1732554799144,20.46889014,240.3,240.23,6.4055]
[1732554799539,17.97199014,240.3,240.23,6.4055]
[1732554799739,17.97199014,240.32,240.24,17.97199014]
[1732554800358,17.97199014,240.34,240.26,17.97199014]
[1732554800727,17.97199014,240.27,240.07,10.8908364]
[1732554800956,17.97199014,240.18,240.07,4.6429364]
[1732554801138,17.97199014,240.14,240.07,0.4775364]
[1732554801467,20.47009014,240.18,240.09,17.97199014]
[1732554802531,17.97199014,240.16,240.07,18.44952654]
[1732554802748,17.97199014,240.14,240.07,18.44952654]
[1732554803074,17.97199014,240.18,240.09,17.97199014]
[1732554803257,2.4983,240.17,240.09,17.97199014]
[1732554803766,2.4979,240.2,240.15,17.97199014]
[1732554804176,2.4973,240.25,240.17,17.97199014]
[1732554804467,17.97199014,240.24,240.15,17.97199014]
[1732554804673,17.97199014,240.17,240.07,0.4775364]
[1732554804844,17.97199014,240.15,240.07,18.44952654]
[1732554805039,20.47049014,240.15,240.07,18.44952654]
[1732554807342,2.4985,240.15,240.07,18.44952654]
[1732554807643,2.4982,240.18,240.11,17.97199014]
[1732554807953,2.4979,240.2,240.13,17.97199014]
[1732554808149,17.97199014,240.23,240.15,17.97199014]
[1732554808668,20.46959014,240.23,240.15,17.97199014]
[1732554808860,2.4976,240.23,240.15,17.97199014]
[1732554809545,20.46939014,240.25,240.17,17.97199014]
[1732554810753,17.97199014,240.18,240.07,4.6428364]
[1732554811068,17.97199014,240.14,240.07,0.4775364]
[1732554811273,17.97199014,240.1,240.07,0.4775364]
[1732554811486,17.97199014,240.08,240.07,0.4775364]
[1732554812047,17.71838582,240.08,240.07,0.4775364]
[1732554812550,17.97199014,240.1,240.07,0.4775364]
[1732554812965,2.499,240.09,240.07,0.4775364]
[1732554814875,17.97199014,240.08,240.07,0.4775364]
[1732554815443,27.97199014,240.08,240.07,0.4775364]
[1732554815649,17.97199014,240.08,240.07,0.4775364]
[1732554816555,47.97199014,240.08,240.07,0.4775364]
[1732554817066,50.47109014,240.08,240.07,0.4775364]
[1732554818358,50.72207014,240.08,240.07,0.4775364]
[1732554818679,50.47109014,240.08,240.07,0.4775364]
[1732554819859,20.47109014,240.08,240.07,0.4775364]
[1732554826790,20.47109014,240.09,240.07,0.4775364]
[1732554827371,17.97199014,240.09,240.07,0.4775364]
[1732554827775,17.97199014,240.08,240.07,0.4775364]
[1732554829300,20.47109014,240.08,240.07,0.4775364]
[1732554829866,2.4991,240.08,240.07,0.4775364]
[1732554830492,20.47109014,240.08,240.07,0.4775364]
[1732554830885,2.4991,240.08,240.07,0.4775364]
[1732554831197,10.0,240.23,240.07,0.4775364]
[1732554831198,17.97199014,240.11,240.07,0.4775364]
[1732554831523,17.97199014,240.1,240.07,0.4775364]
[1732554831995,6.2457,240.17,240.07,0.4775364]
[1732554831996,17.97199014,240.09,240.07,0.4775364]
[1732554832367,0.12549,240.16,240.07,0.4775364]
[1732554832368,17.97199014,240.08,240.07,0.4775364]
[1732554832594,17.97199014,240.09,240.07,0.4775364]
[1732554833581,17.97199014,240.08,240.07,0.4775364]
[1732554834513,13.7534065,240.08,240.07,0.4775364]
[1732554836392,20.5022907,240.08,240.07,0.4775364]
[1732554837380,50.5022907,240.08,240.07,0.4775364]
[1732554837602,20.5022907,240.08,240.07,0.4775364]
[1732554838410,20.6277807,240.08,240.07,0.4775364]
[1732554838702,50.6277807,240.08,240.07,0.4775364]
[1732554840113,50.5022907,240.08,240.07,0.4775364]
[1732554843008,32.4991,240.08,240.07,0.4775364]
[1732554843217,18.0031907,240.12,240.07,0.4775364]
[1732554843424,18.0031907,240.15,240.08,18.0031907]
[1732554843596,2.4985,240.14,240.09,18.0031907]
[1732554844206,2.4985,240.14,240.08,18.0031907]
[1732554844414,18.0031907,240.12,240.07,0.4775364]
[1732554844917,2.4988,240.11,240.07,0.4775364]
[1732554845092,18.0031907,240.1,240.07,0.4775364]
[1732554845792,8.7459,240.11,240.07,0.4775364]
[1732554845793,2.4988,240.11,240.07,18.4807271]
[1732554846293,2.4988,240.11,240.07,0.4775364]
[1732554846812,18.0031907,240.11,240.07,0.4775364]
[1732554846987,18.0031907,240.13,240.07,0.4775364]
[1732554847194,26.7479907,240.14,240.08,18.0031907]
[1732554847923,18.0031907,240.09,240.07,0.4775364]
[1732554848301,30.0,240.08,240.07,0.4775364]
[1732554848503,18.0031907,240.09,240.07,0.4775364]
[1732554848818,2.4991,240.08,240.07,0.4775364]
[1732554849118,20.5022907,240.08,240.07,0.4775364]
[1732554850113,2.4991,240.08,240.07,0.4775364]
[1732554851002,2.4988,240.12,240.07,0.4775364]
[1732554851203,18.0031907,240.12,240.07,0.4775364]
[1732554851409,18.0031907,240.11,240.07,0.4775364]
[1732554851904,18.0031907,240.09,240.07,0.4775364]
[1732554852326,18.0031907,240.08,240.07,0.4775364]
[1732554853199,20.5022907,240.08,240.07,0.4775364]
[1732554854001,20.7532707,240.08,240.07,0.4775364]
[1732554854324,50.7532707,240.08,240.07,0.4775364]
[1732554855306,60.7532707,240.08,240.07,3.64e-05]
[1732554856195,50.7532707,240.08,240.07,3.64e-05]
[1732554856407,44.00433566,240.08,240.07,3.64e-05]
[1732554856615,45.63998561,240.08,240.07,3.64e-05]
[1732554857110,55.63998561,240.08,240.07,3.64e-05]
[1732554857515,55.63998561,240.08,240.0,4.0]
[1732554857516,10.12549,240.07,240.0,4.0]
[1732554857724,11.37974566,240.01,240.0,4.0]
[1732554858100,10.12549,240.0,239.89,16.2581]
[1732554858303,11.25425566,239.9,239.89,16.2581]
[1732554859412,13.75525566,239.9,239.89,16.2581]
[1732554860107,2.501,239.9,239.89,16.2581]
[1732554860309,13.75525566,239.9,239.83,0.4775364]
[1732554860624,11.25425566,239.84,239.64,10.0]
[1732554860801,30.12549,239.89,239.74,11.25425566]
[1732554860802,11.25425566,239.82,239.74,11.25425566]
[1732554861008,11.25425566,239.88,239.79,11.25425566]
[1732554861397,11.25425566,239.84,239.75,6.6504]
[1732554861634,11.25425566,239.82,239.75,6.6504]
[1732554861928,11.25425566,239.76,239.75,6.6504]
[1732554862135,22.50851132,239.76,239.64,6.079]
[1732554862297,11.25425566,239.68,239.64,6.079]
[1732554862707,10.0,239.87,239.64,6.079]
[1732554862905,11.25425566,239.74,239.65,11.25425566]
[1732554863114,11.25425566,239.72,239.65,11.25425566]
[1732554863318,11.25425566,239.69,239.64,6.079]
[1732554863626,2.5018,239.82,239.68,11.25425566]
[1732554863932,11.25425566,239.81,239.73,11.25425566]
[1732554864228,13.75575566,239.86,239.79,21.6172]
[1732554864402,2.5015,239.86,239.79,39.64520906]
[1732554865422,18.02800906,239.85,239.79,15.1513]
[1732554866010,2.5015,239.86,239.8,18.02800906]
[1732554866210,2.5015,239.86,239.79,15.1513]
[1732554866211,20.52950906,239.86,239.79,15.1513]
[1732554866937,18.02800906,239.84,239.79,15.1513]
[1732554867408,20.52970906,239.84,239.79,15.1513]
[1732554867820,18.02800906,239.83,239.79,15.1513]
[1732554869529,18.02800906,239.84,239.79,15.1513]
[1732554869832,18.02800906,239.8,239.71,18.02800906]
[1732554870128,18.02800906,239.76,239.69,33.77960906]
[1732554870631,18.02800906,239.74,239.69,15.7516]
[1732554870835,18.02800906,239.72,239.69,15.7516]
[1732554871037,18.02800906,239.74,239.69,15.7516]
[1732554871341,18.02800906,239.76,239.69,15.7516]
[1732554871504,20.53050906,239.76,239.69,15.7516]
[1732554871918,18.02800906,239.76,239.69,33.77960906]
[1732554872123,20.53030906,239.78,239.69,33.77960906]
[1732554872431,20.53030906,239.78,239.71,18.02800906]
[1732554872940,20.53030906,239.78,239.69,37.95150906]
[1732554873111,20.53030906,239.78,239.71,18.02800906]
[1732554873308,19.71115528,239.88,239.73,18.02800906]
[1732554873309,18.02800906,239.8,239.73,18.02800906]
[1732554873509,20.53010906,239.8,239.73,18.02800906]
[1732554874238,18.02800906,239.82,239.73,18.02800906]
[1732554875116,18.02800906,239.82,239.73,22.19930906]
[1732554875318,18.02800906,239.8,239.73,18.02800906]
[1732554875714,20.53010906,239.8,239.71,4.1715]
[1732554875913,18.02800906,239.8,239.72,18.02800906]
[1732554876140,18.02800906,239.78,239.7,18.02800906]
[1732554877739,20.53030906,239.78,239.7,18.02800906]
[1732554878238,20.53030906,239.78,239.63,16.389]
[1732554878239,18.02800906,239.73,239.63,16.389]
[1732554878442,18.02800906,239.73,239.65,18.02800906]
[1732554878821,18.02800906,239.75,239.67,18.02800906]
[1732554879744,18.02800906,239.71,239.63,16.389]
[1732554879916,2.5029,239.72,239.64,18.02800906]
[1732554880115,2.5029,239.72,239.66,18.02800906]
[1732554880731,2.5027,239.74,239.68,18.02800906]
[1732554881342,2.5027,239.74,239.63,20.562]
[1732554881581,2.5027,239.74,239.67,18.02800906]
[1732554881927,18.02800906,239.73,239.65,18.02800906]
[1732554882721,18.02800906,239.75,239.67,18.02800906]
[1732554883037,18.02800906,239.75,239.69,18.02800906]
[1732554883550,18.02800906,239.79,239.71,18.02800906]
[1732554884056,2.5022,239.78,239.73,18.02800906]
[1732554884217,18.02800906,239.81,239.73,18.02800906]
[1732554884617,18.02800906,239.83,239.75,18.02800906]
[1732554885929,20.52980906,239.83,239.75,22.19890906]
[1732554886130,2.5018,239.83,239.77,18.02800906]
[1732554886316,20.52980906,239.83,239.76,18.02800906]
[1732554886521,18.02800906,239.82,239.75,18.02800906]
[1732554886833,2.5018,239.83,239.76,18.02800906]
[1732554887034,20.52980906,239.83,239.75,18.02800906]
[1732554888144,18.02800906,239.76,239.68,4.1722]
[1732554888441,11.2809715,239.71,239.64,11.2809715]
[1732554889046,11.2809715,239.72,239.64,11.2809715]
[1732554889249,11.2809715,239.69,239.63,16.389]
[1732554889447,11.2809715,239.7,239.63,16.389]
[1732554889947,13.7840715,239.7,239.63,16.389]
[1732554890159,11.2809715,239.69,239.63,16.389]
[1732554890326,20.55643108,239.7,239.63,34.44233108]
[1732554890527,2.5031,239.7,239.63,34.44233108]
[1732554891520,2.5031,239.7,239.65,18.05333108]
[1732554891726,2.5031,239.7,239.64,18.05333108]
[1732554892038,2.5031,239.7,239.65,18.05333108]
[1732554892561,10.0,239.79,239.63,16.389]
[1732554892562,18.05333108,239.77,239.69,18.05333108]
[1732554892726,18.05333108,239.79,239.71,18.05333108]
[1732554893127,18.05333108,239.77,239.69,18.05333108]
[1732554893424,18.05333108,239.77,239.63,20.562]
[1732554893632,18.05333108,239.73,239.65,18.05333108]
[1732554894052,20.55613108,239.73,239.65,18.05333108]
[1732554894229,20.55613108,239.73,239.67,18.05333108]
[1732554894230,2.5028,239.73,239.67,18.05333108]
[1732554894442,18.05333108,239.68,239.63,16.389]
[1732554894754,18.05333108,239.68,239.62,3.0]
[1732554895052,8.7598,239.73,239.62,3.0]
[1732554895053,18.05333108,239.72,239.65,18.05333108]
[1732554895427,2.5028,239.73,239.67,18.05333108]
[1732554896046,2.5026,239.75,239.67,18.05333108]
[1732554896253,2.5026,239.75,239.62,3.0]
[1732554896254,18.05333108,239.69,239.62,3.0]
[1732554896603,18.05333108,239.68,239.62,3.0]
[1732554896759,18.05333108,239.69,239.62,21.05333108]
[1732554897052,18.05333108,239.71,239.64,18.05333108]
[1732554897230,18.05333108,239.73,239.64,18.05333108]
[1732554897834,18.05333108,239.71,239.64,18.05333108]
[1732554898053,20.55643108,239.7,239.63,18.05333108]
[1732554898354,18.05333108,239.68,239.62,3.0]
[1732554898525,20.55643108,239.7,239.62,21.05333108]
[1732554898726,2.5031,239.7,239.64,18.05333108]
[1732554899149,20.55643108,239.7,239.62,21.05333108]
[1732554899327,20.55643108,239.7,239.63,18.05333108]
[1732554899534,2.5031,239.7,239.64,18.05333108]
[1732554899849,18.05333108,239.71,239.64,18.05333108]
[1732554900150,18.05333108,239.74,239.67,18.05333108]
[1732554900357,18.05333108,239.74,239.66,18.05333108]
[1732554900867,18.05333108,239.73,239.66,18.05333108]
[1732554901045,18.05333108,239.72,239.65,18.05333108]
[1732554901245,18.05333108,239.72,239.64,18.05333108]
[1732554901569,18.05333108,239.71,239.64,18.05333108]
[1732554901862,8.7587,239.76,239.62,3.0]
[1732554901863,18.05333108,239.68,239.62,3.0]
[1732554902062,2.5025,239.76,239.67,18.05333108]
[1732554902237,18.05333108,239.75,239.67,18.05333108]
[1732554902749,18.05333108,239.73,239.65,18.05333108]
[1732554903442,20.55613108,239.73,239.65,18.05333108]
[1732554903860,18.05333108,239.73,239.65,18.05333108]
[1732554904036,18.05333108,239.73,239.64,4.1729]
[1732554904037,20.55593108,239.75,239.62,3.0]
[1732554904243,18.05333108,239.77,239.68,18.05333108]
[1732554904446,18.05333108,239.79,239.7,18.05333108]
[1732554904660,8.7557,239.84,239.72,18.05333108]
[1732554904661,2.5016,239.84,239.72,18.05333108]
[1732554904866,18.05333108,239.82,239.74,18.05333108]
[1732554905441,22.20320594,239.88,239.81,18.05333108]
[1732554905780,18.05333108,239.87,239.81,16.5191]
[1732554906067,18.05333108,239.86,239.81,16.5191]
[1732554906263,18.05333108,239.88,239.81,34.57243108]
[1732554906463,18.05333108,239.85,239.81,16.5191]
[1732554906673,18.05333108,239.82,239.81,16.5191]
[1732554906842,18.05333108,239.82,239.74,22.6672]
[1732554907048,0.12549,239.9,239.74,22.6672]
[1732554907359,18.05333108,239.85,239.78,18.05333108]
[1732554907557,18.05333108,239.88,239.8,18.05333108]
[1732554907760,18.05333108,239.88,239.76,23.776884]
[1732554907761,18.05333108,239.91,239.84,18.05333108]
[1732554907975,18.05333108,239.92,239.85,18.05333108]
[1732554908154,2.5006,239.94,239.79,23.776884]
[1732554908155,18.05333108,239.9,239.79,23.776884]
[1732554908357,18.05333108,239.92,239.84,41.83021508]